Workbook

Sheet INICIO
C3: MINISTERIO DE SALUD | G3: CENTRO NACIONAL DE ALIMENTACIÓN Y NUTRICIÓN
C4: INSTITUTO NACIONAL DE SALUD | G4: DIRECCIÓN EJECUTIVA DE VIGILANCIA ALIMENTARIA Y NUTRICIONAL
C6: VRAEM: INDICADORES NUTRICIONALES EN NIÑOS MENORES DE 3 Y 5 AÑOS
C7: SISTEMA DE INFORMACIÓN DEL ESTADO NUTRICIONAL
C8: PERIODO: ENERO A SEPTIEMBRE 2022
C10: 1 | D10: ESTADO NUTRICIONAL EN NIÑOS MENORES DE 3 AÑOS SEGÚN DEPARTAMENTO/PROVINCIA/DISTRITO DEL ESTABLECIMIENTO DE SALUD
C11: 2 | D11: ESTADO NUTRICIONAL EN NIÑOS MENORES DE 5 AÑOS SEGÚN DEPARTAMENTO/PROVINCIA/DISTRITO DEL ESTABLECIMIENTO DE SALUD
C12: 3 | D12: ANEMIA EN NIÑOS ENTRE 6 A 35 MESES SEGÚN DEPARTAMENTO/PROVINCIA/DISTRITO DEL ESTABLECIMIENTO DE SALUD
C13: 4 | D13: ANEMIA EN NIÑOS ENTRE 6 A 59 MESES SEGÚN DEPARTAMENTO/PROVINCIA/DISTRITO DEL ESTABLECIMIENTO DE SALUD

Sheet EN 0-35m x DISTRITO
B2: CUADRO N°01 VRAEM: ESTADO NUTRICIONAL EN NIÑOS MENORES DE 3 AÑOS QUE ACCEDIERON A LOS ESTABLECIMIENTOS DE SALUD POR INDICADORES ANTROPOMÉTRICOS, SEGÚN DEPARTAMENTO, PROVINCIA Y DISTRITO DEL ESTABLECIMIENTO DE SALUD
B3: =INICIO!C$8 -> PERIODO: ENERO A SEPTIEMBRE 2022
B5: DEPARTAMENTO | C5: PROVINCIA | D5: DISTRITO | E5: UBIGEO | F5: INDICADOR TALLA / EDAD1 | L5: INDICADOR PESO / EDAD2 | O5: INDICADOR PESO / TALLA3
F6: N° DE EVALUADOS | G6: DESNUTRICIÓN CRÓNICA | I6: N° DE EVALUADOS | J6: RIESGO DE D. CRÓNICA4 | L6: N° DE EVALUADOS | M6: DESNUTRICIÓN GLOBAL | O6: N° DE EVALUADOS | P6: DESNUTRICIÓN AGUDA | R6: N° DE EVALUADOS | S6: RIESGO DE D. AGUDA | U6: SOBREPESO | W6: OBESIDAD
G7: N° DE CASOS | H7: % | J7: N° DE CASOS | K7: % | M7: N° DE CASOS | N7: % | P7: N° DE CASOS | Q7: % | S7: N° DE CASOS | T7: % | U7: N° DE CASOS | V7: % | W7: N° DE CASOS | X7: %
B8: AYACUCHO | C8: HUAMANGA | D8: AYACUCHO | E8: 50101 | F8: 3549 | G8: 485 | H8: 13.66582136 | I8: 3064 | J8: 1206 | K8: 39.36031332 | L8: 3549 | M8: 181 | N8: 5.100028177 | O8: 3549 | P8: 63 | Q8: 1.775147929 | R8: 3332 | S8: 282 | T8: 8.463385354 | U8: 131 | V8: 3.691180614 | W8: 23 | X8: 0.6480698788
C9: HUANTA | D9: AYAHUANCO | E9: 50402 | F9: 92 | G9: 20 | H9: 21.73913043 | I9: 72 | J9: 38 | K9: 52.77777778 | L9: 92 | M9: 2 | N9: 2.173913043 | O9: 92 | P9: 2 | Q9: 2.173913043 | R9: 87 | S9: 0 | T9: 0 | U9: 3 | V9: 3.260869565 | W9: 0 | X9: 0
D10: CANAYRE | E10: 50409 | F10: 387 | G10: 32 | H10: 8.26873385 | I10: 355 | J10: 128 | K10: 36.05633803 | L10: 387 | M10: 11 | N10: 2.842377261 | O10: 387 | P10: 9 | Q10: 2.325581395 | R10: 357 | S10: 13 | T10: 3.641456583 | U10: 19 | V10: 4.909560724 | W10: 2 | X10: 0.5167958656
D11: CHACA | E11: 50412 | F11: 98 | G11: 20 | H11: 20.40816327 | I11: 78 | J11: 40 | K11: 51.28205128 | L11: 98 | M11: 4 | N11: 4.081632653 | O11: 98 | P11: 1 | Q11: 1.020408163 | R11: 87 | S11: 1 | T11: 1.149425287 | U11: 9 | V11: 9.183673469 | W11: 1 | X11: 1.020408163
D12: HUANTA | E12: 50401 | F12: 1646 | G12: 239 | H12: 14.5200486 | I12: 1407 | J12: 581 | K12: 41.29353234 | L12: 1646 | M12: 85 | N12: 5.164034022 | O12: 1646 | P12: 21 | Q12: 1.27582017 | R12: 1550 | S12: 111 | T12: 7.161290323 | U12: 59 | V12: 3.584447145 | W12: 16 | X12: 0.9720534629
D13: LLOCHEGUA | E13: 50408 | F13: 721 | G13: 91 | H13: 12.62135922 | I13: 630 | J13: 244 | K13: 38.73015873 | L13: 721 | M13: 18 | N13: 2.496532594 | O13: 721 | P13: 1 | Q13: 0.1386962552 | R13: 674 | S13: 43 | T13: 6.379821958 | U13: 37 | V13: 5.131761442 | W13: 9 | X13: 1.248266297
D14: LURICOCHA | E14: 50405 | F14: 388 | G14: 71 | H14: 18.29896907 | I14: 317 | J14: 122 | K14: 38.48580442 | L14: 388 | M14: 23 | N14: 5.927835052 | O14: 388 | P14: 5 | Q14: 1.288659794 | R14: 362 | S14: 29 | T14: 8.011049724 | U14: 18 | V14: 4.639175258 | W14: 3 | X14: 0.7731958763
D15: PUCACOLPA | E15: 50411 | F15: 166 | G15: 36 | H15: 21.68674699 | I15: 130 | J15: 70 | K15: 53.84615385 | L15: 166 | M15: 4 | N15: 2.409638554 | O15: 166 | P15: 0 | Q15: 0 | R15: 151 | S15: 7 | T15: 4.635761589 | U15: 14 | V15: 8.43373494 | W15: 1 | X15: 0.6024096386
D16: SANTILLANA | E16: 50406 | F16: 239 | G16: 58 | H16: 24.26778243 | I16: 181 | J16: 99 | K16: 54.6961326 | L16: 239 | M16: 18 | N16: 7.531380753 | O16: 239 | P16: 1 | Q16: 0.4184100418 | R16: 227 | S16: 16 | T16: 7.04845815 | U16: 10 | V16: 4.184100418 | W16: 1 | X16: 0.4184100418
D17: SIVIA | E17: 50407 | F17: 677 | G17: 86 | H17: 12.70310192 | I17: 591 | J17: 242 | K17: 40.94754653 | L17: 677 | M17: 6 | N17: 0.8862629247 | O17: 677 | P17: 11 | Q17: 1.624815362 | R17: 605 | S17: 17 | T17: 2.809917355 | U17: 51 | V17: 7.53323486 | W17: 10 | X17: 1.477104874
D18: UCHURACCAY | E18: 50410 | F18: 258 | G18: 89 | H18: 34.49612403 | I18: 169 | J18: 104 | K18: 61.53846154 | L18: 258 | M18: 11 | N18: 4.263565891 | O18: 258 | P18: 2 | Q18: 0.7751937984 | R18: 228 | S18: 14 | T18: 6.140350877 | U18: 22 | V18: 8.527131783 | W18: 6 | X18: 2.325581395
C19: LA MAR | D19: ANCHIHUAY | E19: 50510 | F19: 257 | G19: 41 | H19: 15.95330739 | I19: 216 | J19: 92 | K19: 42.59259259 | L19: 257 | M19: 10 | N19: 3.891050584 | O19: 257 | P19: 4 | Q19: 1.556420233 | R19: 242 | S19: 13 | T19: 5.371900826 | U19: 9 | V19: 3.501945525 | W19: 2 | X19: 0.7782101167
D20: ANCO | E20: 50502 | F20: 519 | G20: 101 | H20: 19.46050096 | I20: 418 | J20: 176 | K20: 42.10526316 | L20: 519 | M20: 25 | N20: 4.816955684 | O20: 519 | P20: 9 | Q20: 1.734104046 | R20: 470 | S20: 35 | T20: 7.446808511 | U20: 30 | V20: 5.780346821 | W20: 10 | X20: 1.926782274
D21: AYNA | E21: 50503 | F21: 227 | G21: 47 | H21: 20.70484581 | I21: 180 | J21: 80 | K21: 44.44444444 | L21: 227 | M21: 3 | N21: 1.321585903 | O21: 227 | P21: 0 | Q21: 0 | R21: 201 | S21: 8 | T21: 3.980099502 | U21: 21 | V21: 9.251101322 | W21: 5 | X21: 2.202643172
D22: CHUNGUI | E22: 50505 | F22: 342 | G22: 59 | H22: 17.25146199 | I22: 283 | J22: 125 | K22: 44.16961131 | L22: 342 | M22: 12 | N22: 3.50877193 | O22: 342 | P22: 3 | Q22: 0.8771929825 | R22: 310 | S22: 21 | T22: 6.774193548 | U22: 21 | V22: 6.140350877 | W22: 8 | X22: 2.339181287
D23: ORONCCOY | E23: 50511 | F23: 17 | G23: 4 | H23: 23.52941176 | I23: 13 | J23: 7 | K23: 53.84615385 | L23: 17 | M23: 2 | N23: 11.76470588 | O23: 17 | P23: 0 | Q23: 0 | R23: 15 | S23: 0 | T23: 0 | U23: 2 | V23: 11.76470588 | W23: 0 | X23: 0
D24: SAMUGARI | E24: 50509 | F24: 597 | G24: 77 | H24: 12.89782245 | I24: 520 | J24: 180 | K24: 34.61538462 | L24: 597 | M24: 15 | N24: 2.512562814 | O24: 597 | P24: 8 | Q24: 1.340033501 | R24: 551 | S24: 44 | T24: 7.985480944 | U24: 33 | V24: 5.527638191 | W24: 5 | X24: 0.837520938
D25: SAN MIGUEL | E25: 50501 | F25: 651 | G25: 147 | H25: 22.58064516 | I25: 504 | J25: 232 | K25: 46.03174603 | L25: 651 | M25: 45 | N25: 6.912442396 | O25: 651 | P25: 12 | Q25: 1.843317972 | R25: 598 | S25: 54 | T25: 9.030100334 | U25: 25 | V25: 3.840245776 | W25: 16 | X25: 2.457757296
D26: SANTA ROSA | E26: 50507 | F26: 721 | G26: 82 | H26: 11.37309293 | I26: 639 | J26: 218 | K26: 34.11580595 | L26: 721 | M26: 19 | N26: 2.635228849 | O26: 721 | P26: 12 | Q26: 1.664355062 | R26: 634 | S26: 50 | T26: 7.886435331 | U26: 63 | V26: 8.737864078 | W26: 12 | X26: 1.664355062
D27: TAMBO | E27: 50508 | F27: 572 | G27: 130 | H27: 22.72727273 | I27: 442 | J27: 220 | K27: 49.77375566 | L27: 572 | M27: 16 | N27: 2.797202797 | O27: 572 | P27: 2 | Q27: 0.3496503497 | R27: 535 | S27: 22 | T27: 4.112149533 | U27: 29 | V27: 5.06993007 | W27: 6 | X27: 1.048951049
B28: CUSCO | C28: LA CONVENCION | D28: KIMBIRI | E28: 80907 | F28: 1364 | G28: 182 | H28: 13.3431085 | I28: 1182 | J28: 406 | K28: 34.34856176 | L28: 1364 | M28: 54 | N28: 3.958944282 | O28: 1364 | P28: 30 | Q28: 2.19941349 | R28: 1290 | S28: 99 | T28: 7.674418605 | U28: 34 | V28: 2.492668622 | W28: 10 | X28: 0.7331378299
D29: PICHARI | E29: 80910 | F29: 1337 | G29: 198 | H29: 14.8092745 | I29: 1139 | J29: 373 | K29: 32.74802458 | L29: 1337 | M29: 54 | N29: 4.038893044 | O29: 1337 | P29: 25 | Q29: 1.869857891 | R29: 1242 | S29: 103 | T29: 8.293075684 | U29: 62 | V29: 4.637247569 | W29: 8 | X29: 0.5983545251
D30: VILCABAMBA | E30: 80909 | F30: 245 | G30: 45 | H30: 18.36734694 | I30: 200 | J30: 72 | K30: 36 | L30: 245 | M30: 9 | N30: 3.673469388 | O30: 245 | P30: 2 | Q30: 0.8163265306 | R30: 237 | S30: 27 | T30: 11.39240506 | U30: 5 | V30: 2.040816327 | W30: 1 | X30: 0.4081632653
B31: HUANCAVELICA | C31: TAYACAJA | D31: COLCABAMBA | E31: 90705 | F31: 676 | G31: 135 | H31: 19.9704142 | I31: 541 | J31: 271 | K31: 50.09242144 | L31: 676 | M31: 30 | N31: 4.437869822 | O31: 676 | P31: 9 | Q31: 1.331360947 | R31: 628 | S31: 43 | T31: 6.847133758 | U31: 32 | V31: 4.733727811 | W31: 7 | X31: 1.035502959
D32: HUACHOCOLPA | E32: 90707 | F32: 129 | G32: 28 | H32: 21.70542636 | I32: 101 | J32: 59 | K32: 58.41584158 | L32: 129 | M32: 6 | N32: 4.651162791 | O32: 129 | P32: 1 | Q32: 0.7751937984 | R32: 115 | S32: 5 | T32: 4.347826087 | U32: 11 | V32: 8.527131783 | W32: 2 | X32: 1.550387597
D33: SURCUBAMBA | E33: 90717 | F33: 243 | G33: 54 | H33: 22.22222222 | I33: 189 | J33: 104 | K33: 55.02645503 | L33: 243 | M33: 9 | N33: 3.703703704 | O33: 243 | P33: 3 | Q33: 1.234567901 | R33: 233 | S33: 11 | T33: 4.721030043 | U33: 6 | V33: 2.469135802 | W33: 1 | X33: 0.4115226337
D34: TINTAY PUNCU | E34: 90718 | F34: 175 | G34: 38 | H34: 21.71428571 | I34: 137 | J34: 55 | K34: 40.1459854 | L34: 175 | M34: 11 | N34: 6.285714286 | O34: 175 | P34: 4 | Q34: 2.285714286 | R34: 164 | S34: 8 | T34: 4.87804878 | U34: 4 | V34: 2.285714286 | W34: 3 | X34: 1.714285714
B35: JUNIN | C35: HUANCAYO | D35: PARIAHUANCA | E35: 120124 | F35: 193 | G35: 32 | H35: 16.58031088 | I35: 161 | J35: 61 | K35: 37.88819876 | L35: 193 | M35: 4 | N35: 2.07253886 | O35: 193 | P35: 1 | Q35: 0.518134715 | R35: 182 | S35: 9 | T35: 4.945054945 | U35: 9 | V35: 4.663212435 | W35: 1 | X35: 0.518134715
D36: SANTO DOMINGO DE ACOBAMBA | E36: 120135 | F36: 217 | G36: 43 | H36: 19.8156682 | I36: 174 | J36: 66 | K36: 37.93103448 | L36: 217 | M36: 15 | N36: 6.912442396 | O36: 217 | P36: 8 | Q36: 3.686635945 | R36: 190 | S36: 12 | T36: 6.315789474 | U36: 14 | V36: 6.451612903 | W36: 5 | X36: 2.304147465
C37: SATIPO | D37: MAZAMARI | E37: 120604 | F37: 481 | G37: 41 | H37: 8.523908524 | I37: 440 | J37: 137 | K37: 31.13636364 | L37: 481 | M37: 13 | N37: 2.702702703 | O37: 481 | P37: 2 | Q37: 0.4158004158 | R37: 447 | S37: 22 | T37: 4.921700224 | U37: 28 | V37: 5.821205821 | W37: 4 | X37: 0.8316008316
D38: PANGOA | E38: 120606 | F38: 3382 | G38: 856 | H38: 25.31046718 | I38: 2526 | J38: 955 | K38: 37.80680918 | L38: 3382 | M38: 244 | N38: 7.214665878 | O38: 3382 | P38: 67 | Q38: 1.981076286 | R38: 3065 | S38: 285 | T38: 9.298531811 | U38: 191 | V38: 5.647545831 | W38: 59 | X38: 1.744529864
D39: RIO TAMBO | E39: 120608 | F39: 2048 | G39: 933 | H39: 45.55664062 | I39: 1115 | J39: 571 | K39: 51.21076233 | L39: 2048 | M39: 324 | N39: 15.8203125 | O39: 2048 | P39: 83 | Q39: 4.052734375 | R39: 1848 | S39: 226 | T39: 12.22943723 | U39: 94 | V39: 4.58984375 | W39: 23 | X39: 1.123046875
B40: VRAEM | F40: =SUM(F8:F39) -> 22614 | G40: =SUM(G8:G39) -> 4500 | H40: =G40/F40*100 -> 19.8991775 | I40: =SUM(I8:I39) -> 18114 | J40: =SUM(J8:J39) -> 7334 | K40: =J40/I40*100 -> 40.48802032 | L40: =SUM(L8:L39) -> 22614 | M40: =SUM(M8:M39) -> 1283 | N40: =M40/L40*100 -> 5.673476607 | O40: =SUM(O8:O39) -> 22614 | P40: =SUM(P8:P39) -> 401 | Q40: =P40/O40*100 -> 1.773237817 | R40: =SUM(R8:R39) -> 20857 | S40: =SUM(S8:S39) -> 1630 | T40: =S40/R40*100 -> 7.815122021 | U40: =SUM(U8:U39) -> 1096 | V40: =U40/O40*100 -> 4.846555231 | W40: =SUM(W8:W39) -> 260 | X40: =W40/O40*100 -> 1.149730256
B41: Fuente: Sistema de Información SIEN - HIS, 2022.
B42: Instituto Nacional de Salud / Centro Nacional de Alimentación y Nutrición / Dirección Ejecutiva de Vigilancia Alimentaria y Nutricional.
B43: 1,2,3 Indicadores Nitricionales según OMS.
B44: 4 Riesgo de Desnutrición Crónica (T/E)se considera a todo niño que se encuentra con valor -2 <= Z < -1
B45: (SD) Distritos sin registro de niños.

Sheet EN 0-59m x DISTRITO
B2: CUADRO N°02 VRAEM: ESTADO NUTRICIONAL EN NIÑOS MENORES DE 5 AÑOS QUE ACCEDIERON A LOS ESTABLECIMIENTOS DE SALUD POR INDICADORES ANTROPOMÉTRICOS, SEGÚN DEPARTAMENTO, PROVINCIA Y DISTRITO DEL ESTABLECIMIENTO DE SALUD
B3: =INICIO!C$8 -> PERIODO: ENERO A SEPTIEMBRE 2022
B5: DEPARTAMENTO | C5: PROVINCIA | D5: DISTRITO | E5: UBIGEO | F5: INDICADOR TALLA / EDAD1 | L5: INDICADOR PESO / EDAD2 | O5: INDICADOR PESO / TALLA3
F6: N° DE EVALUADOS | G6: DESNUTRICIÓN CRÓNICA | I6: N° DE EVALUADOS | J6: RIESGO DE D. CRÓNICA4 | L6: N° DE EVALUADOS | M6: DESNUTRICIÓN GLOBAL | O6: N° DE EVALUADOS | P6: DESNUTRICIÓN AGUDA | R6: N° DE EVALUADOS | S6: RIESGO DE D. AGUDA | U6: SOBREPESO | W6: OBESIDAD
G7: N° DE CASOS | H7: % | J7: N° DE CASOS | K7: % | M7: N° DE CASOS | N7: % | P7: N° DE CASOS | Q7: % | S7: N° DE CASOS | T7: % | U7: N° DE CASOS | V7: % | W7: N° DE CASOS | X7: %
B8: AYACUCHO | C8: HUAMANGA | D8: AYACUCHO | E8: 50101 | F8: 4712 | G8: 684 | H8: 14.51612903 | I8: 4028 | J8: 1635 | K8: 40.59086395 | L8: 4712 | M8: 228 | N8: 4.838709677 | O8: 4712 | P8: 75 | Q8: 1.591680815 | R8: 4445 | S8: 359 | T8: 8.076490439 | U8: 160 | V8: 3.395585739 | W8: 32 | X8: 0.6791171477
C9: HUANTA | D9: AYAHUANCO | E9: 50402 | F9: 151 | G9: 34 | H9: 22.51655629 | I9: 117 | J9: 66 | K9: 56.41025641 | L9: 151 | M9: 7 | N9: 4.635761589 | O9: 151 | P9: 2 | Q9: 1.324503311 | R9: 146 | S9: 5 | T9: 3.424657534 | U9: 3 | V9: 1.986754967 | W9: 0 | X9: 0
D10: CANAYRE | E10: 50409 | F10: 488 | G10: 56 | H10: 11.47540984 | I10: 432 | J10: 172 | K10: 39.81481481 | L10: 488 | M10: 17 | N10: 3.483606557 | O10: 488 | P10: 10 | Q10: 2.049180328 | R10: 453 | S10: 18 | T10: 3.973509934 | U10: 22 | V10: 4.508196721 | W10: 3 | X10: 0.6147540984
D11: CHACA | E11: 50412 | F11: 173 | G11: 39 | H11: 22.5433526 | I11: 134 | J11: 77 | K11: 57.46268657 | L11: 173 | M11: 4 | N11: 2.312138728 | O11: 173 | P11: 2 | Q11: 1.156069364 | R11: 154 | S11: 1 | T11: 0.6493506494 | U11: 16 | V11: 9.248554913 | W11: 1 | X11: 0.5780346821
D12: HUANTA | E12: 50401 | F12: 2354 | G12: 344 | H12: 14.61342396 | I12: 2010 | J12: 882 | K12: 43.88059701 | L12: 2354 | M12: 106 | N12: 4.502973662 | O12: 2354 | P12: 29 | Q12: 1.231945624 | R12: 2232 | S12: 155 | T12: 6.944444444 | U12: 70 | V12: 2.973661852 | W12: 23 | X12: 0.9770603229
D13: LLOCHEGUA | E13: 50408 | F13: 970 | G13: 127 | H13: 13.09278351 | I13: 843 | J13: 354 | K13: 41.99288256 | L13: 970 | M13: 24 | N13: 2.474226804 | O13: 970 | P13: 3 | Q13: 0.3092783505 | R13: 911 | S13: 54 | T13: 5.927552141 | U13: 45 | V13: 4.639175258 | W13: 11 | X13: 1.134020619
D14: LURICOCHA | E14: 50405 | F14: 632 | G14: 115 | H14: 18.19620253 | I14: 517 | J14: 211 | K14: 40.81237911 | L14: 632 | M14: 36 | N14: 5.696202532 | O14: 632 | P14: 12 | Q14: 1.898734177 | R14: 592 | S14: 49 | T14: 8.277027027 | U14: 24 | V14: 3.797468354 | W14: 4 | X14: 0.6329113924
D15: PUCACOLPA | E15: 50411 | F15: 304 | G15: 99 | H15: 32.56578947 | I15: 205 | J15: 124 | K15: 60.48780488 | L15: 304 | M15: 15 | N15: 4.934210526 | O15: 304 | P15: 1 | Q15: 0.3289473684 | R15: 276 | S15: 15 | T15: 5.434782609 | U15: 22 | V15: 7.236842105 | W15: 5 | X15: 1.644736842
D16: SANTILLANA | E16: 50406 | F16: 369 | G16: 93 | H16: 25.20325203 | I16: 276 | J16: 166 | K16: 60.14492754 | L16: 369 | M16: 24 | N16: 6.504065041 | O16: 369 | P16: 2 | Q16: 0.5420054201 | R16: 352 | S16: 21 | T16: 5.965909091 | U16: 14 | V16: 3.79403794 | W16: 1 | X16: 0.27100271
D17: SIVIA | E17: 50407 | F17: 991 | G17: 133 | H17: 13.42078708 | I17: 858 | J17: 383 | K17: 44.63869464 | L17: 991 | M17: 15 | N17: 1.513622603 | O17: 991 | P17: 13 | Q17: 1.311806256 | R17: 896 | S17: 32 | T17: 3.571428571 | U17: 66 | V17: 6.659939455 | W17: 16 | X17: 1.614530777
D18: UCHURACCAY | E18: 50410 | F18: 431 | G18: 154 | H18: 35.73085847 | I18: 277 | J18: 183 | K18: 66.06498195 | L18: 431 | M18: 16 | N18: 3.712296984 | O18: 431 | P18: 2 | Q18: 0.464037123 | R18: 397 | S18: 15 | T18: 3.778337531 | U18: 24 | V18: 5.568445476 | W18: 8 | X18: 1.856148492
C19: LA MAR | D19: ANCHIHUAY | E19: 50510 | F19: 395 | G19: 80 | H19: 20.25316456 | I19: 315 | J19: 148 | K19: 46.98412698 | L19: 395 | M19: 14 | N19: 3.544303797 | O19: 395 | P19: 7 | Q19: 1.772151899 | R19: 372 | S19: 15 | T19: 4.032258065 | U19: 13 | V19: 3.291139241 | W19: 3 | X19: 0.7594936709
D20: ANCO | E20: 50502 | F20: 814 | G20: 175 | H20: 21.4987715 | I20: 639 | J20: 299 | K20: 46.79186228 | L20: 814 | M20: 38 | N20: 4.668304668 | O20: 814 | P20: 13 | Q20: 1.597051597 | R20: 751 | S20: 51 | T20: 6.790945406 | U20: 38 | V20: 4.668304668 | W20: 12 | X20: 1.474201474
D21: AYNA | E21: 50503 | F21: 363 | G21: 76 | H21: 20.93663912 | I21: 287 | J21: 144 | K21: 50.17421603 | L21: 363 | M21: 10 | N21: 2.754820937 | O21: 363 | P21: 3 | Q21: 0.826446281 | R21: 331 | S21: 14 | T21: 4.229607251 | U21: 24 | V21: 6.611570248 | W21: 5 | X21: 1.377410468
D22: CHUNGUI | E22: 50505 | F22: 530 | G22: 107 | H22: 20.18867925 | I22: 423 | J22: 204 | K22: 48.22695035 | L22: 530 | M22: 15 | N22: 2.830188679 | O22: 530 | P22: 6 | Q22: 1.132075472 | R22: 489 | S22: 37 | T22: 7.566462168 | U22: 25 | V22: 4.716981132 | W22: 10 | X22: 1.886792453
D23: ORONCCOY | E23: 50511 | F23: 35 | G23: 9 | H23: 25.71428571 | I23: 26 | J23: 16 | K23: 61.53846154 | L23: 35 | M23: 3 | N23: 8.571428571 | O23: 35 | P23: 0 | Q23: 0 | R23: 33 | S23: 1 | T23: 3.03030303 | U23: 2 | V23: 5.714285714 | W23: 0 | X23: 0
D24: SAMUGARI | E24: 50509 | F24: 796 | G24: 106 | H24: 13.31658291 | I24: 690 | J24: 251 | K24: 36.37681159 | L24: 796 | M24: 21 | N24: 2.638190955 | O24: 796 | P24: 13 | Q24: 1.633165829 | R24: 740 | S24: 55 | T24: 7.432432432 | U24: 35 | V24: 4.396984925 | W24: 8 | X24: 1.005025126
D25: SAN MIGUEL | E25: 50501 | F25: 993 | G25: 219 | H25: 22.05438066 | I25: 774 | J25: 384 | K25: 49.6124031 | L25: 993 | M25: 52 | N25: 5.236656596 | O25: 993 | P25: 16 | Q25: 1.611278953 | R25: 921 | S25: 77 | T25: 8.360477742 | U25: 36 | V25: 3.625377644 | W25: 20 | X25: 2.014098691
D26: SANTA ROSA | E26: 50507 | F26: 961 | G26: 126 | H26: 13.11134235 | I26: 835 | J26: 308 | K26: 36.88622754 | L26: 961 | M26: 32 | N26: 3.329864724 | O26: 961 | P26: 19 | Q26: 1.97710718 | R26: 854 | S26: 59 | T26: 6.908665105 | U26: 71 | V26: 7.388137357 | W26: 17 | X26: 1.768990635
D27: TAMBO | E27: 50508 | F27: 833 | G27: 207 | H27: 24.84993998 | I27: 626 | J27: 343 | K27: 54.79233227 | L27: 833 | M27: 30 | N27: 3.601440576 | O27: 833 | P27: 3 | Q27: 0.3601440576 | R27: 792 | S27: 40 | T27: 5.050505051 | U27: 31 | V27: 3.721488595 | W27: 7 | X27: 0.8403361345
B28: CUSCO | C28: LA CONVENCION | D28: KIMBIRI | E28: 80907 | F28: 1934 | G28: 265 | H28: 13.70217166 | I28: 1669 | J28: 647 | K28: 38.76572798 | L28: 1934 | M28: 75 | N28: 3.877973113 | O28: 1934 | P28: 41 | Q28: 2.119958635 | R28: 1826 | S28: 133 | T28: 7.283680175 | U28: 53 | V28: 2.740434333 | W28: 14 | X28: 0.7238883144
D29: PICHARI | E29: 80910 | F29: 1703 | G29: 278 | H29: 16.32413388 | I29: 1425 | J29: 508 | K29: 35.64912281 | L29: 1703 | M29: 72 | N29: 4.227833235 | O29: 1703 | P29: 33 | Q29: 1.9377569 | R29: 1580 | S29: 130 | T29: 8.227848101 | U29: 78 | V29: 4.580152672 | W29: 12 | X29: 0.7046388726
D30: VILCABAMBA | E30: 80909 | F30: 388 | G30: 78 | H30: 20.10309278 | I30: 310 | J30: 116 | K30: 37.41935484 | L30: 388 | M30: 17 | N30: 4.381443299 | O30: 388 | P30: 5 | Q30: 1.288659794 | R30: 371 | S30: 39 | T30: 10.51212938 | U30: 9 | V30: 2.319587629 | W30: 3 | X30: 0.7731958763
B31: HUANCAVELICA | C31: TAYACAJA | D31: COLCABAMBA | E31: 90705 | F31: 1152 | G31: 264 | H31: 22.91666667 | I31: 888 | J31: 464 | K31: 52.25225225 | L31: 1152 | M31: 49 | N31: 4.253472222 | O31: 1152 | P31: 20 | Q31: 1.736111111 | R31: 1074 | S31: 58 | T31: 5.400372439 | U31: 49 | V31: 4.253472222 | W31: 9 | X31: 0.78125
D32: HUACHOCOLPA | E32: 90707 | F32: 264 | G32: 57 | H32: 21.59090909 | I32: 207 | J32: 118 | K32: 57.00483092 | L32: 264 | M32: 10 | N32: 3.787878788 | O32: 264 | P32: 3 | Q32: 1.136363636 | R32: 241 | S32: 13 | T32: 5.394190871 | U32: 18 | V32: 6.818181818 | W32: 2 | X32: 0.7575757576
D33: SURCUBAMBA | E33: 90717 | F33: 404 | G33: 93 | H33: 23.01980198 | I33: 311 | J33: 171 | K33: 54.98392283 | L33: 404 | M33: 14 | N33: 3.465346535 | O33: 404 | P33: 7 | Q33: 1.732673267 | R33: 387 | S33: 20 | T33: 5.167958656 | U33: 8 | V33: 1.98019802 | W33: 2 | X33: 0.495049505
D34: TINTAY PUNCU | E34: 90718 | F34: 284 | G34: 73 | H34: 25.70422535 | I34: 211 | J34: 92 | K34: 43.60189573 | L34: 284 | M34: 17 | N34: 5.985915493 | O34: 284 | P34: 7 | Q34: 2.464788732 | R34: 265 | S34: 15 | T34: 5.660377358 | U34: 7 | V34: 2.464788732 | W34: 5 | X34: 1.76056338
B35: JUNIN | C35: HUANCAYO | D35: PARIAHUANCA | E35: 120124 | F35: 278 | G35: 55 | H35: 19.78417266 | I35: 223 | J35: 100 | K35: 44.84304933 | L35: 278 | M35: 8 | N35: 2.877697842 | O35: 278 | P35: 1 | Q35: 0.3597122302 | R35: 265 | S35: 11 | T35: 4.150943396 | U35: 11 | V35: 3.956834532 | W35: 1 | X35: 0.3597122302
D36: SANTO DOMINGO DE ACOBAMBA | E36: 120135 | F36: 381 | G36: 97 | H36: 25.45931759 | I36: 284 | J36: 133 | K36: 46.83098592 | L36: 381 | M36: 23 | N36: 6.036745407 | O36: 381 | P36: 8 | Q36: 2.099737533 | R36: 348 | S36: 22 | T36: 6.32183908 | U36: 19 | V36: 4.98687664 | W36: 6 | X36: 1.57480315
C37: SATIPO | D37: MAZAMARI | E37: 120604 | F37: 673 | G37: 59 | H37: 8.766716196 | I37: 614 | J37: 210 | K37: 34.2019544 | L37: 673 | M37: 16 | N37: 2.377414562 | O37: 673 | P37: 3 | Q37: 0.4457652303 | R37: 625 | S37: 25 | T37: 4 | U37: 40 | V37: 5.943536404 | W37: 5 | X37: 0.7429420505
D38: PANGOA | E38: 120606 | F38: 4568 | G38: 1294 | H38: 28.32749562 | I38: 3274 | J38: 1403 | K38: 42.85277947 | L38: 4568 | M38: 348 | N38: 7.61821366 | O38: 4568 | P38: 92 | Q38: 2.014010508 | R38: 4135 | S38: 363 | T38: 8.778718259 | U38: 264 | V38: 5.779334501 | W38: 77 | X38: 1.685639229
D39: RIO TAMBO | E39: 120608 | F39: 2876 | G39: 1382 | H39: 48.05285118 | I39: 1494 | J39: 830 | K39: 55.55555556 | L39: 2876 | M39: 463 | N39: 16.09874826 | O39: 2876 | P39: 97 | Q39: 3.372739917 | R39: 2642 | S39: 311 | T39: 11.77138531 | U39: 111 | V39: 3.859527121 | W39: 26 | X39: 0.9040333797
B40: VRAEM | F40: =SUM(F8:F39) -> 32200 | G40: =SUM(G8:G39) -> 6978 | H40: =G40/F40*100 -> 21.67080745 | I40: =SUM(I8:I39) -> 25222 | J40: =SUM(J8:J39) -> 11142 | K40: =J40/I40*100 -> 44.17571961 | L40: =SUM(L8:L39) -> 32200 | M40: =SUM(M8:M39) -> 1819 | N40: =M40/L40*100 -> 5.649068323 | O40: =SUM(O8:O39) -> 32200 | P40: =SUM(P8:P39) -> 548 | Q40: =P40/O40*100 -> 1.701863354 | R40: =SUM(R8:R39) -> 29896 | S40: =SUM(S8:S39) -> 2213 | T40: =S40/R40*100 -> 7.402328071 | U40: =SUM(U8:U39) -> 1408 | V40: =U40/O40*100 -> 4.372670807 | W40: =SUM(W8:W39) -> 348 | X40: =W40/O40*100 -> 1.080745342
B41: Fuente: Sistema de Información SIEN - HIS, 2022.
B42: Instituto Nacional de Salud / Centro Nacional de Alimentación y Nutrición / Dirección Ejecutiva de Vigilancia Alimentaria y Nutricional.
B43: 1,2,3 Indicadores Nitricionales según OMS.
B44: 4 Riesgo de Desnutrición Crónica (T/E)se considera a todo niño que se encuentra con valor -2 <= Z < -1
B45: (SD) Distritos sin registro de niños.

Sheet Anemia 6-35m x DISTRITO
B2: CUADRO N°03 VRAEM: ANEMIA EN NIÑOS ENTRE 6 A 35 MESES QUE ACCEDIERON A LOS ESTABLECIMIENTOS DE SALUD, SEGÚN DEPARTAMENTO, PROVINCIA Y DISTRITO DEL ESTABLECIMIENTO DE SALUD
B3: =INICIO!C$8 -> PERIODO: ENERO A SEPTIEMBRE 2022
B5: DEPARTAMENTO | C5: PROVINCIA | D5: DISTRITO | E5: UBIGEO | F5: N° DE EVALUADOS | G5: ANEMIA TOTAL | I5: ANEMIA LEVE | K5: ANEMIA MODERADA | M5: ANEMIA SEVERA
G6: N° DE CASOS | H6: % | I6: N° DE CASOS | J6: % | K6: N° DE CASOS | L6: % | M6: N° DE CASOS | N6: %
B7: AYACUCHO | C7: HUAMANGA | D7: AYACUCHO | E7: 50101 | F7: 1373 | G7: 425 | H7: 30.95411508 | I7: 278 | J7: 20.24763292 | K7: 147 | L7: 10.70648216 | M7: 0 | N7: 0
C8: HUANTA | D8: AYAHUANCO | E8: 50402 | F8: 32 | G8: 24 | H8: 75 | I8: 11 | J8: 34.375 | K8: 12 | L8: 37.5 | M8: 1 | N8: 3.125
D9: CANAYRE | E9: 50409 | F9: 162 | G9: 19 | H9: 11.72839506 | I9: 12 | J9: 7.407407407 | K9: 7 | L9: 4.320987654 | M9: 0 | N9: 0
D10: CHACA | E10: 50412 | F10: 14 | G10: 5 | H10: 35.71428571 | I10: 4 | J10: 28.57142857 | K10: 1 | L10: 7.142857143 | M10: 0 | N10: 0
D11: HUANTA | E11: 50401 | F11: 521 | G11: 109 | H11: 20.92130518 | I11: 78 | J11: 14.97120921 | K11: 31 | L11: 5.950095969 | M11: 0 | N11: 0
D12: LLOCHEGUA | E12: 50408 | F12: 235 | G12: 14 | H12: 5.957446809 | I12: 9 | J12: 3.829787234 | K12: 5 | L12: 2.127659574 | M12: 0 | N12: 0
D13: LURICOCHA | E13: 50405 | F13: 112 | G13: 49 | H13: 43.75 | I13: 29 | J13: 25.89285714 | K13: 20 | L13: 17.85714286 | M13: 0 | N13: 0
D14: PUCACOLPA | E14: 50411 | F14: 42 | G14: 21 | H14: 50 | I14: 11 | J14: 26.19047619 | K14: 10 | L14: 23.80952381 | M14: 0 | N14: 0
D15: SANTILLANA | E15: 50406 | F15: 70 | G15: 30 | H15: 42.85714286 | I15: 18 | J15: 25.71428571 | K15: 12 | L15: 17.14285714 | M15: 0 | N15: 0
D16: SIVIA | E16: 50407 | F16: 188 | G16: 7 | H16: 3.723404255 | I16: 1 | J16: 0.5319148936 | K16: 6 | L16: 3.191489362 | M16: 0 | N16: 0
D17: UCHURACCAY | E17: 50410 | F17: 76 | G17: 50 | H17: 65.78947368 | I17: 24 | J17: 31.57894737 | K17: 26 | L17: 34.21052632 | M17: 0 | N17: 0
C18: LA MAR | D18: ANCHIHUAY | E18: 50510 | F18: 49 | G18: 8 | H18: 16.32653061 | I18: 5 | J18: 10.20408163 | K18: 3 | L18: 6.12244898 | M18: 0 | N18: 0
D19: ANCO | E19: 50502 | F19: 100 | G19: 73 | H19: 73 | I19: 14 | J19: 14 | K19: 57 | L19: 57 | M19: 2 | N19: 2
D20: AYNA | E20: 50503 | F20: 307 | G20: 16 | H20: 5.211726384 | I20: 12 | J20: 3.908794788 | K20: 4 | L20: 1.302931596 | M20: 0 | N20: 0
D21: CHUNGUI | E21: 50505 | F21: 102 | G21: 70 | H21: 68.62745098 | I21: 22 | J21: 21.56862745 | K21: 48 | L21: 47.05882353 | M21: 0 | N21: 0
D22: ORONCCOY | E22: 50511 | F22: 5 | G22: 1 | H22: 20 | I22: 1 | J22: 20 | K22: 0 | L22: 0 | M22: 0 | N22: 0
D23: SAMUGARI | E23: 50509 | F23: 239 | G23: 44 | H23: 18.41004184 | I23: 38 | J23: 15.89958159 | K23: 6 | L23: 2.510460251 | M23: 0 | N23: 0
D24: SAN MIGUEL | E24: 50501 | F24: 216 | G24: 54 | H24: 25 | I24: 45 | J24: 20.83333333 | K24: 9 | L24: 4.166666667 | M24: 0 | N24: 0
D25: SANTA ROSA | E25: 50507 | F25: 248 | G25: 27 | H25: 10.88709677 | I25: 23 | J25: 9.274193548 | K25: 4 | L25: 1.612903226 | M25: 0 | N25: 0
D26: TAMBO | E26: 50508 | F26: 248 | G26: 103 | H26: 41.53225806 | I26: 66 | J26: 26.61290323 | K26: 36 | L26: 14.51612903 | M26: 1 | N26: 0.4032258065
B27: CUSCO | C27: LA CONVENCION | D27: KIMBIRI | E27: 80907 | F27: 393 | G27: 84 | H27: 21.3740458 | I27: 68 | J27: 17.30279898 | K27: 16 | L27: 4.071246819 | M27: 0 | N27: 0
D28: PICHARI | E28: 80910 | F28: 313 | G28: 126 | H28: 40.25559105 | I28: 86 | J28: 27.47603834 | K28: 40 | L28: 12.77955272 | M28: 0 | N28: 0
D29: VILCABAMBA | E29: 80909 | F29: 21 | G29: 21 | H29: 100 | I29: 1 | J29: 4.761904762 | K29: 20 | L29: 95.23809524 | M29: 0 | N29: 0
B30: HUANCAVELICA | C30: TAYACAJA | D30: COLCABAMBA | E30: 90705 | F30: 169 | G30: 60 | H30: 35.50295858 | I30: 36 | J30: 21.30177515 | K30: 23 | L30: 13.60946746 | M30: 1 | N30: 0.5917159763
D31: HUACHOCOLPA | E31: 90707 | F31: 26 | G31: 11 | H31: 42.30769231 | I31: 8 | J31: 30.76923077 | K31: 2 | L31: 7.692307692 | M31: 1 | N31: 3.846153846
D32: SURCUBAMBA | E32: 90717 | F32: 63 | G32: 9 | H32: 14.28571429 | I32: 8 | J32: 12.6984127 | K32: 1 | L32: 1.587301587 | M32: 0 | N32: 0
D33: TINTAY PUNCU | E33: 90718 | F33: 32 | G33: 5 | H33: 15.625 | I33: 3 | J33: 9.375 | K33: 2 | L33: 6.25 | M33: 0 | N33: 0
B34: JUNIN | C34: HUANCAYO | D34: PARIAHUANCA | E34: 120124 | F34: 115 | G34: 87 | H34: 75.65217391 | I34: 52 | J34: 45.2173913 | K34: 34 | L34: 29.56521739 | M34: 1 | N34: 0.8695652174
D35: SANTO DOMINGO DE ACOBAMBA | E35: 120135 | F35: 60 | G35: 27 | H35: 45 | I35: 18 | J35: 30 | K35: 9 | L35: 15 | M35: 0 | N35: 0
C36: SATIPO | D36: MAZAMARI | E36: 120604 | F36: 658 | G36: 150 | H36: 22.79635258 | I36: 121 | J36: 18.38905775 | K36: 29 | L36: 4.407294833 | M36: 0 | N36: 0
D37: PANGOA | E37: 120606 | F37: 1489 | G37: 451 | H37: 30.28878442 | I37: 369 | J37: 24.78173271 | K37: 82 | L37: 5.507051713 | M37: 0 | N37: 0
D38: RIO TAMBO | E38: 120608 | F38: 1615 | G38: 545 | H38: 33.74613003 | I38: 402 | J38: 24.89164087 | K38: 143 | L38: 8.854489164 | M38: 0 | N38: 0
B39: VRAEM | F39: =SUM(F7:F38) -> 9293 | G39: =SUM(G7:G38) -> 2725 | H39: =G39/F39*100 -> 29.32314645 | I39: =SUM(I7:I38) -> 1873 | J39: =I39/F39*100 -> 20.15495534 | K39: =SUM(K7:K38) -> 845 | L39: =K39/F39*100 -> 9.092865598 | M39: =SUM(M7:M38) -> 7 | N39: =M39/F39*100 -> 0.07532551383
B40: Fuente: Sistema de Información SIEN - HIS, 2022.
B41: Instituto Nacional de Salud / Centro Nacional de Alimentación y Nutrición / Dirección Ejecutiva de Vigilancia Alimentaria y Nutricional.
B42: (SD) Distritos sin registro de niños.

Sheet Anemia 6-59m x DISTRITO
B2: CUADRO N°04 VRAEM: ANEMIA EN NIÑOS ENTRE 6 A 59 MESES QUE ACCEDIERON A LOS ESTABLECIMIENTOS DE SALUD, SEGÚN DEPARTAMENTO, PROVINCIA Y DISTRITO DEL ESTABLECIMIENTO DE SALUD
B3: =INICIO!C$8 -> PERIODO: ENERO A SEPTIEMBRE 2022
B5: DEPARTAMENTO | C5: PROVINCIA | D5: DISTRITO | E5: UBIGEO | F5: N° DE EVALUADOS | G5: ANEMIA TOTAL | I5: ANEMIA LEVE | K5: ANEMIA MODERADA | M5: ANEMIA SEVERA
G6: N° DE CASOS | H6: % | I6: N° DE CASOS | J6: % | K6: N° DE CASOS | L6: % | M6: N° DE CASOS | N6: %
B7: AYACUCHO | C7: HUAMANGA | D7: AYACUCHO | E7: 50101 | F7: 2098 | G7: 523 | H7: 24.92850334 | I7: 355 | J7: 16.92087703 | K7: 168 | L7: 8.007626311 | M7: 0 | N7: 0
C8: HUANTA | D8: AYAHUANCO | E8: 50402 | F8: 50 | G8: 34 | H8: 68 | I8: 17 | J8: 34 | K8: 16 | L8: 32 | M8: 1 | N8: 2
D9: CANAYRE | E9: 50409 | F9: 236 | G9: 22 | H9: 9.322033898 | I9: 15 | J9: 6.355932203 | K9: 7 | L9: 2.966101695 | M9: 0 | N9: 0
D10: CHACA | E10: 50412 | F10: 22 | G10: 8 | H10: 36.36363636 | I10: 6 | J10: 27.27272727 | K10: 2 | L10: 9.090909091 | M10: 0 | N10: 0
D11: HUANTA | E11: 50401 | F11: 726 | G11: 125 | H11: 17.21763085 | I11: 91 | J11: 12.53443526 | K11: 34 | L11: 4.683195592 | M11: 0 | N11: 0
D12: LLOCHEGUA | E12: 50408 | F12: 371 | G12: 16 | H12: 4.312668464 | I12: 11 | J12: 2.964959569 | K12: 5 | L12: 1.347708895 | M12: 0 | N12: 0
D13: LURICOCHA | E13: 50405 | F13: 176 | G13: 61 | H13: 34.65909091 | I13: 38 | J13: 21.59090909 | K13: 23 | L13: 13.06818182 | M13: 0 | N13: 0
D14: PUCACOLPA | E14: 50411 | F14: 63 | G14: 32 | H14: 50.79365079 | I14: 20 | J14: 31.74603175 | K14: 12 | L14: 19.04761905 | M14: 0 | N14: 0
D15: SANTILLANA | E15: 50406 | F15: 103 | G15: 43 | H15: 41.74757282 | I15: 30 | J15: 29.12621359 | K15: 13 | L15: 12.62135922 | M15: 0 | N15: 0
D16: SIVIA | E16: 50407 | F16: 344 | G16: 7 | H16: 2.034883721 | I16: 1 | J16: 0.2906976744 | K16: 6 | L16: 1.744186047 | M16: 0 | N16: 0
D17: UCHURACCAY | E17: 50410 | F17: 107 | G17: 69 | H17: 64.48598131 | I17: 33 | J17: 30.8411215 | K17: 36 | L17: 33.64485981 | M17: 0 | N17: 0
C18: LA MAR | D18: ANCHIHUAY | E18: 50510 | F18: 76 | G18: 11 | H18: 14.47368421 | I18: 6 | J18: 7.894736842 | K18: 5 | L18: 6.578947368 | M18: 0 | N18: 0
D19: ANCO | E19: 50502 | F19: 145 | G19: 101 | H19: 69.65517241 | I19: 24 | J19: 16.55172414 | K19: 75 | L19: 51.72413793 | M19: 2 | N19: 1.379310345
D20: AYNA | E20: 50503 | F20: 482 | G20: 19 | H20: 3.941908714 | I20: 15 | J20: 3.112033195 | K20: 4 | L20: 0.8298755187 | M20: 0 | N20: 0
D21: CHUNGUI | E21: 50505 | F21: 197 | G21: 123 | H21: 62.43654822 | I21: 43 | J21: 21.82741117 | K21: 80 | L21: 40.60913706 | M21: 0 | N21: 0
D22: ORONCCOY | E22: 50511 | F22: 17 | G22: 3 | H22: 17.64705882 | I22: 3 | J22: 17.64705882 | K22: 0 | L22: 0 | M22: 0 | N22: 0
D23: SAMUGARI | E23: 50509 | F23: 380 | G23: 53 | H23: 13.94736842 | I23: 47 | J23: 12.36842105 | K23: 6 | L23: 1.578947368 | M23: 0 | N23: 0
D24: SAN MIGUEL | E24: 50501 | F24: 332 | G24: 67 | H24: 20.18072289 | I24: 57 | J24: 17.1686747 | K24: 10 | L24: 3.012048193 | M24: 0 | N24: 0
D25: SANTA ROSA | E25: 50507 | F25: 431 | G25: 34 | H25: 7.88863109 | I25: 30 | J25: 6.960556845 | K25: 4 | L25: 0.9280742459 | M25: 0 | N25: 0
D26: TAMBO | E26: 50508 | F26: 384 | G26: 128 | H26: 33.33333333 | I26: 87 | J26: 22.65625 | K26: 40 | L26: 10.41666667 | M26: 1 | N26: 0.2604166667
B27: CUSCO | C27: LA CONVENCION | D27: KIMBIRI | E27: 80907 | F27: 652 | G27: 103 | H27: 15.79754601 | I27: 85 | J27: 13.03680982 | K27: 18 | L27: 2.760736196 | M27: 0 | N27: 0
D28: PICHARI | E28: 80910 | F28: 437 | G28: 150 | H28: 34.32494279 | I28: 109 | J28: 24.94279176 | K28: 41 | L28: 9.38215103 | M28: 0 | N28: 0
D29: VILCABAMBA | E29: 80909 | F29: 27 | G29: 25 | H29: 92.59259259 | I29: 3 | J29: 11.11111111 | K29: 22 | L29: 81.48148148 | M29: 0 | N29: 0
B30: HUANCAVELICA | C30: TAYACAJA | D30: COLCABAMBA | E30: 90705 | F30: 273 | G30: 75 | H30: 27.47252747 | I30: 48 | J30: 17.58241758 | K30: 26 | L30: 9.523809524 | M30: 1 | N30: 0.3663003663
D31: HUACHOCOLPA | E31: 90707 | F31: 52 | G31: 16 | H31: 30.76923077 | I31: 11 | J31: 21.15384615 | K31: 4 | L31: 7.692307692 | M31: 1 | N31: 1.923076923
D32: SURCUBAMBA | E32: 90717 | F32: 111 | G32: 15 | H32: 13.51351351 | I32: 14 | J32: 12.61261261 | K32: 1 | L32: 0.9009009009 | M32: 0 | N32: 0
D33: TINTAY PUNCU | E33: 90718 | F33: 53 | G33: 7 | H33: 13.20754717 | I33: 5 | J33: 9.433962264 | K33: 2 | L33: 3.773584906 | M33: 0 | N33: 0
B34: JUNIN | C34: HUANCAYO | D34: PARIAHUANCA | E34: 120124 | F34: 174 | G34: 130 | H34: 74.71264368 | I34: 75 | J34: 43.10344828 | K34: 54 | L34: 31.03448276 | M34: 1 | N34: 0.5747126437
D35: SANTO DOMINGO DE ACOBAMBA | E35: 120135 | F35: 125 | G35: 47 | H35: 37.6 | I35: 33 | J35: 26.4 | K35: 14 | L35: 11.2 | M35: 0 | N35: 0
C36: SATIPO | D36: MAZAMARI | E36: 120604 | F36: 969 | G36: 196 | H36: 20.22703818 | I36: 163 | J36: 16.82146543 | K36: 33 | L36: 3.405572755 | M36: 0 | N36: 0
D37: PANGOA | E37: 120606 | F37: 2275 | G37: 563 | H37: 24.74725275 | I37: 466 | J37: 20.48351648 | K37: 97 | L37: 4.263736264 | M37: 0 | N37: 0
D38: RIO TAMBO | E38: 120608 | F38: 2327 | G38: 679 | H38: 29.17920069 | I38: 510 | J38: 21.91663086 | K38: 169 | L38: 7.262569832 | M38: 0 | N38: 0
B39: VRAEM | F39: =SUM(F7:F38) -> 14215 | G39: =SUM(G7:G38) -> 3485 | H39: =G39/F39*100 -> 24.51635596 | I39: =SUM(I7:I38) -> 2451 | J39: =I39/F39*100 -> 17.24234963 | K39: =SUM(K7:K38) -> 1027 | L39: =K39/F39*100 -> 7.224762575 | M39: =SUM(M7:M38) -> 7 | N39: =M39/F39*100 -> 0.0492437566
B40: Fuente: Sistema de Información SIEN - HIS, 2022.
B41: Instituto Nacional de Salud / Centro Nacional de Alimentación y Nutrición / Dirección Ejecutiva de Vigilancia Alimentaria y Nutricional.
B42: (SD) Distritos sin registro de niños.
